[Event "GER-ch Blitz 2019"]
[Site "Magdeburg"]
[Date "2019.05.25"]
[Round "1.4"]
[White "Schulze, Marc"]
[Black "Frischmann, Rick"]
[Result "1-0"]
[ECO "D00"]
[WhiteElo "2220"]
[BlackElo "2320"]
[Annotator "ChessBase"]
[PlyCount "79"]
[EventDate "2019.05.25"]
[EventType "tourn"]
[EventCountry "GER"]
[Tiebreak "Number of wins+Number of black wins"]
[SourceTitle "playchess.com"]
[Source "ChessBase"]
[SourceQuality "1"]
[TimeControl "180+2"]

1. d4 {[%emt 0:00:00]} d5 {[%emt 0:00:00]} 2. Bf4 {[%emt 0:00:01]} Nc6 {
[%emt 0:00:00]} 3. e3 {[%emt 0:00:00]} Nf6 {[%emt 0:00:00]} 4. Nf3 {[%emt 0:00:
01]} Bg4 {[%emt 0:00:01]} 5. c4 {[%emt 0:00:02]} e6 {[%emt 0:00:00]} 6. Nc3 {
[%emt 0:00:00]} Bb4 {[%emt 0:00:01]} 7. a3 {[%emt 0:00:08]} Bxc3+ {[%emt 0:00:
01]} 8. bxc3 {[%emt 0:00:01]} O-O {[%emt 0:00:03]} 9. Rb1 {[%emt 0:00:03]} b6 {
[%emt 0:00:05]} 10. cxd5 {[%emt 0:00:04]} Nxd5 {[%emt 0:00:07]} 11. Rc1 {
[%emt 0:00:47]} Nxf4 {[%emt 0:00:03]} 12. exf4 {[%emt 0:00:01]} Qd6 {[%emt 0:
00:01]} 13. g3 {[%emt 0:00:02]} Qxa3 {[%emt 0:00:05]} 14. Be2 {[%emt 0:00:02]}
Rad8 {[%emt 0:00:08]} 15. O-O {[%emt 0:00:02]} Bxf3 {[%emt 0:00:07]} 16. Bxf3 {
[%emt 0:00:02]} Na5 {[%emt 0:00:05]} 17. Qe2 {[%emt 0:00:07]} c5 {[%emt 0:00:
07]} 18. dxc5 {[%emt 0:00:06]} Qxc5 {[%emt 0:00:02]} 19. Rfd1 {[%emt 0:00:07]}
g6 {[%emt 0:00:05]} 20. h4 {[%emt 0:00:01]} h5 {[%emt 0:00:20]} 21. Kg2 {
[%emt 0:00:04]} Nc4 {[%emt 0:00:18]} 22. Qe4 {[%emt 0:00:22]} Nb2 {[%emt 0:00:
15]} 23. Rxd8 {[%emt 0:00:06]} Rxd8 {[%emt 0:00:01]} 24. Be2 {[%emt 0:00:05]}
Rd2 {[%emt 0:00:24]} 25. Rc2 {[%emt 0:00:08]} Rxc2 26. Qxc2 {[%emt 0:00:01]}
Nc4 {[%emt 0:00:15]} 27. Qa4 {[%emt 0:00:01]} b5 {[%emt 0:00:28]} 28. Qa6 {
[%emt 0:00:06]} Nd6 {[%emt 0:00:03]} 29. Bf3 {[%emt 0:00:18]} Kg7 {[%emt 0:00:
01]} 30. Qa1 {[%emt 0:00:01]} Nc4 {[%emt 0:00:07]} 31. Be2 {[%emt 0:00:06]} Nd6
{[%emt 0:00:17]} 32. Bf3 {[%emt 0:00:04]} Kh7 {[%emt 0:00:05]} 33. Qa6 {
[%emt 0:00:07]} Nc4 {[%emt 0:00:06]} 34. Be2 Qd5+ {[%emt 0:00:06]} 35. Kg1 {
[%emt 0:00:16]} Qe4 {[%emt 0:00:08]} 36. Bxc4 {[%emt 0:00:05]} Qxc4 {[%emt 0:
00:04]} 37. Qxa7 {[%emt 0:00:03]} Kg7 {[%emt 0:00:04]} 38. Qe3 {[%emt 0:00:03]}
Qd5 {[%emt 0:00:01]} 39. Kh2 {[%emt 0:00:03]} Kh7 {[%emt 0:00:01]} 40. Kg1 {
[%emt 0:00:02]} 1-0

[Event "GER-ch Blitz 2019"]
[Site "Magdeburg"]
[Date "2019.05.25"]
[Round "1.5"]
[White "Hirneise, Jens"]
[Black "Svane, Frederik"]
[Result "1-0"]
[ECO "B43"]
[WhiteElo "2375"]
[BlackElo "2342"]
[Annotator "NA RC"]
[PlyCount "27"]
[EventDate "2019.05.25"]
[EventType "tourn"]
[EventCountry "GER"]
[Tiebreak "Number of wins+Number of black wins"]
[SourceTitle "playchess.com"]
[Source "ChessBase"]
[SourceQuality "1"]
[TimeControl "180+2"]

1. e4 {[%emt 0:00:00]} c5 {[%emt 0:00:00]} 2. Nf3 {[%emt 0:00:00]} e6 {[%emt 0:
00:00]} 3. d4 {[%emt 0:00:00]} cxd4 {[%emt 0:00:01]} 4. Nxd4 {[%emt 0:00:01]}
a6 {[%emt 0:00:01]} 5. Nc3 {[%emt 0:00:01]} Qc7 {[%emt 0:00:01]} 6. Bd3 {
[%emt 0:00:01]} Bc5 {[%emt 0:00:06]} 7. Nb3 {[%emt 0:00:01]} Ba7 {[%emt 0:00:
01]} 8. Qg4 {[%emt 0:00:06]} g6 $16 {[%emt 0:00:13]} (8... Kf8 $142) 9. Bf4 {
[%emt 0:00:14]} d6 {[%emt 0:00:49]} 10. Qg3 {[%emt 0:00:04]} e5 {[%emt 0:00:10]
} 11. Nd5 {[%emt 0:00:04]} Qc6 {[%emt 0:01:32]} 12. Bxe5 {[%emt 0:00:04]} f6 {
[%emt 0:00:27]} 13. Bxd6 {[%emt 0:00:05]} Kf7 {[%emt 0:00:02]} 14. Nc7 {
[%emt 0:00:14]} 1-0

[Event "GER-ch Blitz 2019"]
[Site "Magdeburg"]
[Date "2019.05.25"]
[Round "1.8"]
[White "Kopylov, Michael"]
[Black "Carow, Johannes"]
[Result "0-1"]
[ECO "D20"]
[WhiteElo "2413"]
[BlackElo "2445"]
[Annotator "ChessBase"]
[PlyCount "90"]
[EventDate "2019.05.25"]
[EventType "tourn"]
[EventCountry "GER"]
[Tiebreak "Number of wins+Number of black wins"]
[SourceTitle "playchess.com"]
[Source "ChessBase"]
[SourceQuality "1"]
[TimeControl "180+2"]

1. d4 {[%emt 0:00:00]} d5 {[%emt 0:00:00]} 2. c4 {[%emt 0:00:00]} dxc4 {
[%emt 0:00:00]} 3. e4 {[%emt 0:00:04]} Nf6 {[%emt 0:00:02]} 4. Nc3 {[%emt 0:00:
09]} e5 {[%emt 0:00:05]} 5. Nf3 {[%emt 0:00:01]} exd4 {[%emt 0:00:09]} 6. Qxd4
{[%emt 0:00:01]} Qxd4 {[%emt 0:00:09]} 7. Nxd4 {[%emt 0:00:01]} c6 {[%emt 0:01:
02]} 8. Bxc4 {[%emt 0:00:13]} Nbd7 {[%emt 0:00:12]} 9. f3 {[%emt 0:00:09]} g6 {
[%emt 0:00:09]} 10. Be3 {[%emt 0:00:02]} Bg7 {[%emt 0:00:01]} 11. O-O-O {
[%emt 0:00:07]} O-O {[%emt 0:00:05]} 12. Be2 {[%emt 0:00:16]} Re8 {[%emt 0:00:
03]} 13. g4 {[%emt 0:00:10]} a6 {[%emt 0:00:13]} 14. Nb3 {[%emt 0:00:22]} b6 {
[%emt 0:00:20]} 15. h4 {[%emt 0:00:43]} Bf8 {[%emt 0:00:20]} 16. h5 {[%emt 0:
00:06]} c5 {[%emt 0:00:12]} 17. hxg6 {[%emt 0:00:07]} hxg6 {[%emt 0:00:02]} 18.
g5 {[%emt 0:00:04]} Nh5 {[%emt 0:00:08]} 19. Nd5 {[%emt 0:00:18]} Ra7 {[%emt 0:
00:10]} 20. Rh3 {[%emt 0:00:24]} Bg7 {[%emt 0:00:07]} 21. Rh4 {[%emt 0:00:11]}
Bb7 {[%emt 0:00:09]} 22. Nc7 {[%emt 0:00:05]} Re7 {[%emt 0:00:01]} 23. f4 {
[%emt 0:00:02]} Bxe4 24. Rh3 {[%emt 0:00:10]} Rxc7 {[%emt 0:00:04]} 25. Bxh5 {
[%emt 0:00:01]} gxh5 {[%emt 0:00:01]} 26. Rxh5 Bg6 {[%emt 0:00:01]} 27. Rh3 {
[%emt 0:00:01]} Bf5 {[%emt 0:00:00]} 28. Rg3 {[%emt 0:00:01]} Nf8 {[%emt 0:00:
01]} 29. Rd8 {[%emt 0:00:02]} Rcd7 {[%emt 0:00:01]} 30. Ra8 {[%emt 0:00:01]} a5
{[%emt 0:00:01]} 31. Nd2 {[%emt 0:00:01]} Rd3 {[%emt 0:00:02]} 32. Bf2 {
[%emt 0:00:00]} Rxg3 {[%emt 0:00:01]} 33. Bxg3 {[%emt 0:00:00]} Kh7 {[%emt 0:
00:01]} 34. Rb8 {[%emt 0:00:00]} Nd7 {[%emt 0:00:02]} 35. Rb7 {[%emt 0:00:00]}
Bd4 {[%emt 0:00:02]} 36. Bh4 {[%emt 0:00:00]} Kg6 {[%emt 0:00:02]} 37. Nf3 {
[%emt 0:00:00]} Bg7 {[%emt 0:00:02]} 38. Bf2 {[%emt 0:00:00]} Kh5 {[%emt 0:00:
02]} 39. Nd2 {[%emt 0:00:00]} Bf8 {[%emt 0:00:02]} 40. Nc4 {[%emt 0:00:00]} Kg4
{[%emt 0:00:03]} 41. Nxb6 Nxb6 {[%emt 0:00:01]} 42. Rxb6 {[%emt 0:00:00]} c4 {
[%emt 0:00:03]} 43. Rc6 {[%emt 0:00:00]} Bd3 {[%emt 0:00:02]} 44. Rf6 {[%emt 0:
00:00]} Bg7 {[%emt 0:00:02]} 45. Ra6 {[%emt 0:00:00]} Re2 {[%emt 0:00:01]} 0-1

[Event "GER-ch Blitz 2019"]
[Site "Magdeburg"]
[Date "2019.05.25"]
[Round "1.12"]
[White "Baskin, Robert"]
[Black "Barzen, Pascal"]
[Result "1-0"]
[ECO "A45"]
[WhiteElo "2398"]
[BlackElo "2292"]
[Annotator "ChessBase"]
[PlyCount "181"]
[EventDate "2019.05.25"]
[EventType "tourn"]
[EventCountry "GER"]
[Tiebreak "Number of wins+Number of black wins"]
[SourceTitle "playchess.com"]
[Source "ChessBase"]
[SourceQuality "1"]
[TimeControl "180+2"]

1. d4 {[%emt 0:00:00]} Nf6 {[%emt 0:00:00]} 2. Bf4 {[%emt 0:00:01]} e6 {
[%emt 0:00:00]} 3. e3 {[%emt 0:00:02]} b6 {[%emt 0:00:00]} 4. Nf3 {[%emt 0:00:
01]} Bb7 {[%emt 0:00:00]} 5. h3 {[%emt 0:00:02]} d5 {[%emt 0:00:01]} 6. Bd3 {
[%emt 0:00:04]} Bd6 {[%emt 0:00:01]} 7. Nbd2 {[%emt 0:00:07]} O-O {[%emt 0:00:
03]} 8. Ne5 {[%emt 0:00:05]} c5 {[%emt 0:00:02]} 9. c3 {[%emt 0:00:01]} Nc6 {
[%emt 0:00:02]} 10. Nxc6 {[%emt 0:00:16]} Bxc6 {[%emt 0:00:01]} 11. Bxd6 {
[%emt 0:00:02]} Qxd6 {[%emt 0:00:01]} 12. f4 {[%emt 0:00:02]} cxd4 {[%emt 0:00:
20]} 13. cxd4 {[%emt 0:00:02]} Ne4 {[%emt 0:00:14]} 14. O-O {[%emt 0:00:16]}
Qb4 {[%emt 0:00:08]} 15. Bxe4 {[%emt 0:00:23]} dxe4 {[%emt 0:00:01]} 16. Rc1 {
[%emt 0:00:02]} Bb5 {[%emt 0:00:13]} 17. Rf2 {[%emt 0:00:02]} Bd3 {[%emt 0:00:
07]} 18. a3 {[%emt 0:00:03]} Qd6 {[%emt 0:00:06]} 19. Nc4 {[%emt 0:00:02]} Bxc4
{[%emt 0:00:37]} 20. Rxc4 {[%emt 0:00:02]} Rfc8 {[%emt 0:00:10]} 21. Rfc2 {
[%emt 0:00:03]} Rxc4 {[%emt 0:00:06]} 22. Rxc4 {[%emt 0:00:02]} h6 {[%emt 0:00:
01]} 23. Qc2 {[%emt 0:00:15]} Rd8 {[%emt 0:00:06]} 24. Qxe4 {[%emt 0:00:05]} g6
{[%emt 0:00:05]} 25. Qc6 {[%emt 0:00:22]} Qe7 {[%emt 0:00:10]} 26. g3 {[%emt 0:
00:07]} h5 {[%emt 0:00:02]} 27. h4 {[%emt 0:00:01]} Qf6 {[%emt 0:00:22]} 28.
Qe4 {[%emt 0:00:02]} Qe7 {[%emt 0:00:11]} 29. Qe5 {[%emt 0:00:08]} Qd7 {
[%emt 0:00:04]} 30. Rc7 {[%emt 0:00:10]} Qa4 {[%emt 0:00:01]} 31. Rc1 {[%emt 0:
00:25]} Qb3 {[%emt 0:00:04]} 32. d5 {[%emt 0:00:25]} exd5 {[%emt 0:00:09]} 33.
Qd4 {[%emt 0:00:02]} Re8 {[%emt 0:00:05]} 34. Kf2 {[%emt 0:00:01]} Kh7 {
[%emt 0:00:14]} 35. Rc7 {[%emt 0:00:02]} Kg8 {[%emt 0:00:04]} 36. Kf3 {[%emt 0:
00:09]} a5 {[%emt 0:00:09]} 37. f5 {[%emt 0:00:08]} gxf5 {[%emt 0:00:05]} 38.
Rc1 {[%emt 0:00:05]} Qb5 {[%emt 0:00:06]} 39. Qf4 {[%emt 0:00:05]} Qd7 {
[%emt 0:00:02]} 40. Qg5+ {[%emt 0:00:01]} Kf8 {[%emt 0:00:00]} 41. Qxh5 Qe6 42.
Qh8+ {[%emt 0:00:03]} Ke7 {[%emt 0:00:03]} 43. Qc3 {[%emt 0:00:01]} Qe4+ {
[%emt 0:00:00]} 44. Kf2 {[%emt 0:00:02]} Rd8 {[%emt 0:00:06]} 45. Qc7+ {
[%emt 0:00:04]} Rd7 {[%emt 0:00:01]} 46. Qf4 {[%emt 0:00:01]} Qd3 {[%emt 0:00:
02]} 47. Qd4 {[%emt 0:00:01]} Qe4 {[%emt 0:00:04]} 48. Rc6 {[%emt 0:00:05]}
Qxd4 49. exd4 {[%emt 0:00:01]} f4 {[%emt 0:00:05]} 50. gxf4 Kf8 51. h5 {
[%emt 0:00:03]} Kg7 {[%emt 0:00:01]} 52. h6+ {[%emt 0:00:01]} Kh7 {[%emt 0:00:
00]} 53. Rxb6 {[%emt 0:00:01]} Rc7 {[%emt 0:00:00]} 54. Kf3 {[%emt 0:00:01]}
Rc2 {[%emt 0:00:02]} 55. Kg4 {[%emt 0:00:02]} Rd2 {[%emt 0:00:01]} 56. Kf5 Rxd4
{[%emt 0:00:01]} 57. Ke5 {[%emt 0:00:06]} Re4+ {[%emt 0:00:01]} 58. Kxd5 {
[%emt 0:00:01]} Rxf4 {[%emt 0:00:01]} 59. Kc5 {[%emt 0:00:03]} a4 {[%emt 0:00:
01]} 60. Kb5 {[%emt 0:00:00]} f5 {[%emt 0:00:03]} 61. Ka5 {[%emt 0:00:02]} Re4
{[%emt 0:00:02]} 62. Rf6 {[%emt 0:00:01]} f4 {[%emt 0:00:02]} 63. Kb5 {[%emt 0:
00:01]} Rd4 {[%emt 0:00:00]} 64. Kc5 {[%emt 0:00:01]} Re4 {[%emt 0:00:01]} 65.
Kd5 {[%emt 0:00:01]} Re2 {[%emt 0:00:00]} 66. Rxf4 {[%emt 0:00:01]} Rxb2 {
[%emt 0:00:02]} 67. Rxa4 {[%emt 0:00:01]} Kxh6 {[%emt 0:00:00]} 68. Kc5 {
[%emt 0:00:03]} Kg5 {[%emt 0:00:01]} 69. Rb4 {[%emt 0:00:06]} Ra2 {[%emt 0:00:
05]} 70. a4 {[%emt 0:00:01]} Kf6 {[%emt 0:00:01]} 71. Re4 {[%emt 0:00:01]} Kf5
{[%emt 0:00:01]} 72. Rd4 {[%emt 0:00:02]} Ke6 {[%emt 0:00:02]} 73. Kb5 {
[%emt 0:00:01]} Ke5 {[%emt 0:00:02]} 74. Rd1 {[%emt 0:00:01]} Ke6 {[%emt 0:00:
02]} 75. a5 {[%emt 0:00:01]} Rb2+ {[%emt 0:00:01]} 76. Ka6 {[%emt 0:00:00]} Rb3
{[%emt 0:00:01]} 77. Ka7 {[%emt 0:00:02]} Rb2 {[%emt 0:00:01]} 78. a6 {[%emt 0:
00:00]} Ke7 {[%emt 0:00:00]} 79. Rd3 {[%emt 0:00:03]} Rb1 {[%emt 0:00:02]} 80.
Ka8 {[%emt 0:00:04]} Rb2 {[%emt 0:00:01]} 81. Rh3 {[%emt 0:00:02]} Kd7 {
[%emt 0:00:01]} 82. Rh7+ {[%emt 0:00:01]} Kc8 {[%emt 0:00:01]} 83. Rb7 {
[%emt 0:00:02]} Ra2 {[%emt 0:00:01]} 84. a7 {[%emt 0:00:01]} Ra1 {[%emt 0:00:
02]} 85. Rb2 {[%emt 0:00:01]} Ra3 {[%emt 0:00:02]} 86. Rc2+ {[%emt 0:00:01]}
Kd7 {[%emt 0:00:01]} 87. Rc4 {[%emt 0:00:02]} Ra2 {[%emt 0:00:02]} 88. Kb7 {
[%emt 0:00:03]} Rb2+ {[%emt 0:00:03]} 89. Ka6 {[%emt 0:00:01]} Ra2+ {[%emt 0:
00:01]} 90. Kb6 {[%emt 0:00:01]} Rb2+ {[%emt 0:00:03]} 91. Ka5 {[%emt 0:00:00]}
1-0

[Event "GER-ch Blitz 2019"]
[Site "Magdeburg"]
[Date "2019.05.25"]
[Round "1.14"]
[White "Wichmann, Cliff"]
[Black "Braeuning, Rudolf Wilhelm"]
[Result "0-1"]
[ECO "A50"]
[WhiteElo "2280"]
[BlackElo "2285"]
[Annotator "ChessBase"]
[PlyCount "72"]
[EventDate "2019.05.25"]
[EventType "tourn"]
[EventCountry "GER"]
[Tiebreak "Number of wins+Number of black wins"]
[SourceTitle "playchess.com"]
[Source "ChessBase"]
[SourceQuality "1"]
[TimeControl "180+2"]

1. d4 {[%emt 0:00:01]} Nf6 {[%emt 0:00:00]} 2. c4 {[%emt 0:00:01]} Nc6 {
[%emt 0:00:00]} 3. Nf3 {[%emt 0:00:01]} e6 {[%emt 0:00:01]} 4. e3 {[%emt 0:00:
01]} d6 {[%emt 0:00:11]} 5. b3 {[%emt 0:00:03]} g6 {[%emt 0:00:03]} 6. Bb2 {
[%emt 0:00:01]} Bg7 {[%emt 0:00:00]} 7. Nbd2 {[%emt 0:00:01]} O-O {[%emt 0:00:
02]} 8. Be2 {[%emt 0:00:04]} Qe7 {[%emt 0:00:05]} 9. O-O {[%emt 0:00:19]} e5 {
[%emt 0:00:01]} 10. d5 {[%emt 0:00:20]} Nb8 {[%emt 0:00:08]} 11. Qc2 {[%emt 0:
00:07]} a5 {[%emt 0:00:01]} 12. a3 {[%emt 0:00:01]} Bf5 {[%emt 0:00:17]} 13. e4
{[%emt 0:00:08]} Bg4 {[%emt 0:00:03]} 14. b4 {[%emt 0:00:04]} Nbd7 {[%emt 0:00:
07]} 15. Rfc1 {[%emt 0:00:25]} b6 {[%emt 0:00:06]} 16. Nf1 {[%emt 0:00:12]} Nh5
{[%emt 0:00:11]} 17. h3 {[%emt 0:00:29]} Bxf3 {[%emt 0:00:06]} 18. Bxf3 {
[%emt 0:00:02]} Nf4 {[%emt 0:00:04]} 19. Ne3 {[%emt 0:00:11]} Qg5 {[%emt 0:00:
06]} 20. Kh2 {[%emt 0:00:07]} f5 {[%emt 0:00:01]} 21. g3 {[%emt 0:00:13]} fxe4
{[%emt 0:00:37]} 22. Bg4 {[%emt 0:00:01]} Nd3 {[%emt 0:00:11]} 23. Rf1 {
[%emt 0:00:11]} Nf6 {[%emt 0:00:07]} 24. Be6+ {[%emt 0:00:11]} Kh8 {[%emt 0:00:
02]} 25. Rad1 {[%emt 0:00:02]} axb4 {[%emt 0:00:03]} 26. axb4 {[%emt 0:00:02]}
Nxb4 {[%emt 0:00:11]} 27. Qe2 {[%emt 0:00:00]} Nd3 {[%emt 0:00:03]} 28. f4 {
[%emt 0:00:12]} exf4 {[%emt 0:00:06]} 29. gxf4 {[%emt 0:00:07]} Nxf4 {[%emt 0:
00:04]} 30. Qf2 {[%emt 0:00:05]} Ra2 {[%emt 0:00:13]} 31. Rd2 {[%emt 0:00:00]}
Nd3 {[%emt 0:00:06]} 32. Qg3 {[%emt 0:00:03]} Qxg3+ {[%emt 0:00:04]} 33. Kxg3 {
[%emt 0:00:02]} Rxb2 {[%emt 0:00:01]} 34. Rxd3 {[%emt 0:00:01]} exd3 {[%emt 0:
00:02]} 35. Rd1 {[%emt 0:00:01]} Ne4+ {[%emt 0:00:04]} 36. Kg4 {[%emt 0:00:03]}
Nf2+ {[%emt 0:00:02]} 0-1

[Event "GER-ch Blitz 2019"]
[Site "Magdeburg"]
[Date "2019.05.25"]
[Round "1.15"]
[White "Voege, Tobias"]
[Black "Feuerstack, Aljoscha"]
[Result "0-1"]
[ECO "A58"]
[WhiteElo "2294"]
[BlackElo "2441"]
[Annotator "NA RC"]
[PlyCount "50"]
[EventDate "2019.05.25"]
[EventType "tourn"]
[EventCountry "GER"]
[Tiebreak "Number of wins+Number of black wins"]
[SourceTitle "playchess.com"]
[Source "ChessBase"]
[SourceQuality "1"]
[TimeControl "180+2"]

1. d4 {[%emt 0:00:00]} Nf6 {[%emt 0:00:01]} 2. c4 {[%emt 0:00:01]} c5 {[%emt 0:
00:01]} 3. d5 {[%emt 0:00:01]} b5 {[%emt 0:00:00]} 4. cxb5 {[%emt 0:00:01]} a6
{[%emt 0:00:01]} 5. bxa6 $11 {[%emt 0:00:14]} e6 {[%emt 0:00:01]} 6. Nc3 {
[%emt 0:00:02]} exd5 {[%emt 0:00:01]} 7. Nxd5 {[%emt 0:00:06]} Be7 {[%emt 0:00:
02]} 8. Bf4 {[%emt 0:00:44]} Nxd5 {[%emt 0:00:41]} 9. Qxd5 {[%emt 0:00:03]} Nc6
{[%emt 0:00:01]} 10. e4 {[%emt 0:00:28]} O-O {[%emt 0:00:09]} 11. Nf3 {[%emt 0:
00:32]} Bxa6 {[%emt 0:00:15]} 12. Bxa6 {[%emt 0:00:02]} Qa5+ {[%emt 0:00:17]}
13. Bd2 {[%emt 0:00:10]} Qxa6 {[%emt 0:00:03]} 14. Bc3 {[%emt 0:00:05]} Nb4 {
[%emt 0:00:32]} 15. Bxb4 {[%emt 0:00:14]} cxb4 {[%emt 0:00:01]} 16. Qd2 {
[%emt 0:00:10]} b3 {[%emt 0:00:15]} 17. a3 {[%emt 0:00:16]} Bf6 {[%emt 0:00:19]
} 18. e5 {[%emt 0:00:05]} Rfe8 {[%emt 0:00:01]} 19. Qe2 {[%emt 0:00:01]} Qa5+ {
[%emt 0:00:01]} 20. Qd2 {[%emt 0:00:06]} Qa6 {[%emt 0:00:41]} 21. Qe2 {[%emt 0:
00:01]} Qa5+ {[%emt 0:00:04]} 22. Qd2 {[%emt 0:00:01]} Bxe5 {[%emt 0:00:01]}
23. Qxa5 {[%emt 0:00:01]} Bxb2+ {[%emt 0:00:01]} 24. Kd2 {[%emt 0:00:10]} Rxa5
{[%emt 0:00:01]} 25. Rab1 {[%emt 0:00:03]} Rd5+ {[%emt 0:00:01]} 0-1

[Event "GER-ch Blitz 2019"]
[Site "Magdeburg"]
[Date "2019.05.25"]
[Round "2.3"]
[White "Stein, Robert"]
[Black "Schulze, Marc"]
[Result "0-1"]
[ECO "A53"]
[WhiteElo "2318"]
[BlackElo "2220"]
[Annotator "NA"]
[PlyCount "56"]
[EventDate "2019.05.25"]
[EventType "tourn"]
[EventCountry "GER"]
[Tiebreak "Number of wins+Number of black wins"]
[SourceTitle "playchess.com"]
[Source "ChessBase"]
[SourceQuality "1"]
[TimeControl "180+2"]

1. d4 {[%emt 0:00:01]} Nf6 {[%emt 0:00:00]} 2. c4 {[%emt 0:00:01]} d6 {[%emt 0:
00:00]} 3. Nf3 {[%emt 0:00:02]} Bf5 {[%emt 0:00:00]} 4. Nc3 {[%emt 0:00:04]} h6
{[%emt 0:00:01]} 5. g3 {[%emt 0:00:07]} Nbd7 {[%emt 0:00:01]} 6. Bg2 {[%emt 0:
00:01]} c6 {[%emt 0:00:01]} 7. O-O {[%emt 0:00:01]} e5 {[%emt 0:00:01]} 8. b3 {
[%emt 0:00:16]} Be7 {[%emt 0:00:02]} 9. Bb2 {[%emt 0:00:01]} O-O {[%emt 0:00:
09]} 10. dxe5 {[%emt 0:00:01]} dxe5 {[%emt 0:00:01]} 11. h3 {[%emt 0:00:20]}
Qc7 {[%emt 0:00:01]} 12. Nd2 {[%emt 0:00:24]} Nc5 {[%emt 0:00:07]} 13. b4 {
[%emt 0:00:04]} Ne6 {[%emt 0:00:04]} 14. c5 {[%emt 0:00:05]} Rfd8 {[%emt 0:00:
10]} 15. e3 {[%emt 0:00:40]} Rd7 {[%emt 0:00:27]} 16. Qc1 {[%emt 0:00:01]} Rad8
{[%emt 0:00:05]} 17. Rd1 {[%emt 0:00:11]} Ng5 {[%emt 0:00:12]} 18. g4 {[%emt 0:
00:13]} Bd3 {[%emt 0:00:06]} 19. Nf3 {[%emt 0:00:08]} Nxf3+ {[%emt 0:00:07]}
20. Bxf3 {[%emt 0:00:01]} e4 {[%emt 0:00:16]} 21. Bg2 {[%emt 0:00:01]} h5 {
[%emt 0:00:15]} 22. g5 {[%emt 0:00:02]} Nh7 {[%emt 0:00:01]} 23. Nxe4 {[%emt 0:
00:08]} Bxe4 {[%emt 0:00:05]} 24. Rxd7 {[%emt 0:00:01]} Qxd7 {[%emt 0:00:03]}
25. Bxe4 {[%emt 0:00:01]} Nxg5 {[%emt 0:00:01]} 26. Bg2 {[%emt 0:00:05]} Nxh3+
{[%emt 0:00:01]} 27. Bxh3 {[%emt 0:00:25]} Qxh3 {[%emt 0:00:01]} 28. Qc4 {
[%emt 0:00:04]} Rd5 {[%emt 0:00:07]} 0-1

[Event "GER-ch Blitz 2019"]
[Site "Magdeburg"]
[Date "2019.05.25"]
[Round "2.5"]
[White "Frischmann, Rick"]
[Black "Heidrich, Manfred"]
[Result "1-0"]
[ECO "B29"]
[WhiteElo "2320"]
[BlackElo "2351"]
[Annotator "NA"]
[PlyCount "57"]
[EventDate "2019.05.25"]
[EventType "tourn"]
[EventCountry "GER"]
[Tiebreak "Number of wins+Number of black wins"]
[SourceTitle "playchess.com"]
[Source "ChessBase"]
[SourceQuality "1"]
[TimeControl "180+2"]

1. e4 {[%emt 0:00:00]} c5 {[%emt 0:00:00]} 2. Nf3 {[%emt 0:00:01]} Nf6 {
[%emt 0:00:00]} 3. e5 {[%emt 0:00:04]} Nd5 {[%emt 0:00:01]} 4. Nc3 {[%emt 0:00:
01]} e6 {[%emt 0:00:01]} 5. Ne4 {[%emt 0:00:01]} Nc6 {[%emt 0:00:01]} 6. c4 {
[%emt 0:00:00]} Nc7 {[%emt 0:00:01]} 7. g3 {[%emt 0:00:18]} d6 {[%emt 0:00:12]}
8. exd6 {[%emt 0:00:04]} Bxd6 {[%emt 0:00:00]} 9. Bg2 {[%emt 0:00:04]} O-O {
[%emt 0:00:06]} 10. O-O {[%emt 0:00:02]} e5 {[%emt 0:00:01]} 11. a3 {[%emt 0:
00:11]} f5 {[%emt 0:00:08]} 12. Nxd6 {[%emt 0:00:01]} Qxd6 {[%emt 0:00:01]} 13.
d3 {[%emt 0:00:01]} h6 {[%emt 0:00:07]} 14. b4 {[%emt 0:00:03]} cxb4 {[%emt 0:
00:13]} 15. axb4 {[%emt 0:00:01]} Nxb4 {[%emt 0:00:03]} 16. Ba3 {[%emt 0:00:02]
} a5 {[%emt 0:00:14]} 17. Nxe5 {[%emt 0:00:02]} Qxe5 {[%emt 0:00:05]} 18. Bxb4
{[%emt 0:00:02]} axb4 {[%emt 0:00:00]} 19. Rxa8 {[%emt 0:00:01]} Nxa8 {[%emt 0:
00:01]} 20. d4 {[%emt 0:00:05]} Qc7 {[%emt 0:00:08]} 21. c5 {[%emt 0:00:02]}
Bd7 {[%emt 0:00:09]} 22. Qb3+ {[%emt 0:00:05]} Kh8 {[%emt 0:00:03]} 23. Qxb4 {
[%emt 0:00:01]} Rd8 {[%emt 0:00:12]} 24. Qxb7 {[%emt 0:00:13]} Qxb7 {[%emt 0:
00:02]} 25. Bxb7 {[%emt 0:00:01]} Nc7 {[%emt 0:00:02]} 26. d5 {[%emt 0:00:00]}
Rb8 {[%emt 0:00:07]} 27. c6 {[%emt 0:00:01]} Be8 {[%emt 0:00:33]} 28. d6 {
[%emt 0:00:03]} Ne6 {[%emt 0:00:07]} 29. c7 {[%emt 0:00:04]} 1-0